bitfinex/quotes_ETHUSD_20250425
["timestamp","ask_amount","ask_price","bid_price","bid_amount"]
[1745570802868,5.62366437,1778.2,1778.1,5.28273989]
[1745570803166,12.0359365,1778.2,1778.1,0.52473989]
[1745570803356,5.6252461,1777.7,1777.4,16.871]
[1745570803560,5.62556255,1777.6,1777.5,4.758]
[1745570803868,5.6252461,1777.7,1777.5,7.00404]
[1745570804333,5.62510218,1777.8,1777.5,7.00404]
[1745570804538,5.62524895,1777.7,1777.5,7.00404]
[1745570805476,5.62515614,1777.8,1777.5,7.00404]
[1745570805849,5.62533612,1777.7,1777.5,7.00404]
[1745570806935,11.25086829,1777.7,1777.5,7.00404]
[1745570807136,5.62556255,1777.6,1777.5,7.00404]
[1745570808039,5.62587904,1777.5,1777.4,17.7024]
[1745570808363,5.62587904,1777.5,1777.4,21.63]
[1745570810932,10.52395033,1777.5,1777.4,4.759]
[1745570811147,5.6275813,1777.0,1776.8,0.826]
[1745570811305,5.6275813,1777.0,1776.9,4.759]
[1745570812343,5.62728559,1777.1,1776.9,4.759]
[1745570812649,11.25467054,1777.1,1776.9,4.759]
[1745570812834,11.25467054,1777.1,1776.9,5.51627]
[1745570813346,5.62728559,1777.1,1776.9,5.51627]
[1745570813650,5.62746201,1777.0,1776.9,5.51627]
[1745570814007,5.62716038,1777.1,1776.9,5.51627]
[1745570814712,5.62671374,1777.3,1776.9,5.51627]
[1745570814958,10.52446769,1777.4,1777.1,0.7974]
[1745570815114,5.62655133,1777.3,1777.1,0.7974]
[1745570815515,16.15092611,1777.4,1777.1,0.7974]
[1745570815848,5.62652541,1777.3,1777.1,0.7974]
[1745570816358,10.524445,1777.4,1777.1,0.7974]
[1745570817467,4.89807129,1777.4,1777.1,0.7974]
[1745570817936,10.5234562,1777.7,1777.1,0.7974]
[1745570818155,5.62563075,1777.6,1777.1,0.7974]
[1745570818439,10.52345343,1777.7,1777.1,6.42444601]
[1745570818646,4.89807129,1777.7,1777.3,0.7914]
[1745570818847,4.89807129,1777.7,1777.4,4.76]
[1745570819046,5.62569411,1777.6,1777.4,4.76]
[1745570819255,5.62587904,1777.5,1777.4,4.76]
[1745570819415,5.62569411,1777.6,1777.4,4.76]
[1745570819744,10.52350445,1777.7,1777.4,4.76]
[1745570819939,16.14898419,1777.7,1777.4,5.31514]
[1745570820141,5.62559521,1777.6,1777.4,5.31514]
[1745570821127,10.52332007,1777.7,1777.4,5.31514]
[1745570821329,16.14882186,1777.7,1777.4,5.31514]
[1745570821826,10.52332007,1777.7,1777.4,5.31514]
[1745570822027,16.14881026,1777.7,1777.4,5.31514]
[1745570822258,5.62587904,1777.5,1777.4,4.76]
[1745570831276,5.62713498,1777.2,1776.9,0.8137]
[1745570831441,5.62713498,1777.2,1777.0,4.749]
[1745570831956,5.62714534,1777.1,1777.0,4.749]
[1745570832269,5.62714534,1777.1,1777.0,5.83081216]
[1745570832444,5.62714534,1777.1,1777.0,5.27454216]
[1745570833463,5.62714534,1777.1,1777.0,4.749]
[1745570833984,5.62809545,1776.8,1776.7,16.877]
[1745570834142,5.62809545,1776.8,1776.7,22.15268514]
[1745570837262,11.2559557,1776.9,1776.7,22.15268514]
[1745570837500,6.45715982,1777.0,1776.7,22.15268514]
[1745570837700,5.62795869,1776.9,1776.7,21.627]
[1745570837995,5.62778517,1776.9,1776.7,23.7897]
[1745570838378,5.62778517,1776.9,1776.8,0.52550882]
[1745570838774,5.62778517,1776.9,1776.7,23.7897]
[1745570839805,5.62758761,1777.0,1776.8,0.52541889]
[1745570839962,10.5253399,1777.1,1776.9,0.803]
[1745570840166,4.89807129,1777.1,1776.9,0.803]
[1745570840566,10.52521663,1777.1,1777.0,0.52541889]
[1745570841813,5.62760053,1777.0,1776.7,24.6123]
[1745570842601,5.62760053,1777.0,1776.8,0.52539859]
[1745570843006,5.62760053,1777.0,1776.9,0.52539859]
[1745570844321,5.62785819,1776.9,1776.7,24.6123]
[1745570844607,5.62760053,1777.0,1776.8,0.5253708]
[1745570844825,4.89807129,1777.1,1776.8,3.03913788]
[1745570844826,10.52533896,1777.1,1776.8,3.03913788]
[1745570845010,10.52533896,1777.1,1776.9,0.5253708]
[1745570845312,16.15274359,1777.1,1776.9,0.5253708]
[1745570845614,16.15274359,1777.1,1776.8,2.51376708]
[1745570845814,11.2546723,1777.1,1776.8,2.51376708]
[1745570846106,5.62751524,1777.0,1776.8,2.51376708]
[1745570846700,5.62777871,1776.9,1776.8,2.51376708]
[1745570846875,5.62751524,1777.0,1776.8,2.51376708]
[1745570847277,5.62751524,1777.0,1776.9,0.52534452]
[1745570848108,6.42541524,1777.0,1776.9,0.52534452]
[1745570848307,7.18528468,1777.0,1776.9,0.52534452]
[1745570848520,5.62777871,1776.9,1776.8,4.75]
[1745570851719,10.52585,1776.9,1776.8,4.75]
[1745570853839,4.89807129,1776.9,1776.8,4.75]
[1745570854134,4.89807129,1776.9,1776.8,5.9774]
[1745570854430,4.89807129,1776.9,1776.8,6.50301671]
[1745570856020,6.42229315,1777.4,1776.9,0.7925]
[1745570856225,5.62666596,1777.3,1776.9,0.7925]
[1745570856627,11.25341731,1777.3,1777.0,0.52561671]
[1745570856837,5.6269071,1777.2,1777.0,0.52561671]
[1745570857323,5.6269071,1777.2,1776.9,0.7925]
[1745570857705,5.6269071,1777.2,1777.0,0.5259842]
[1745570857892,5.62714534,1777.1,1777.0,0.5259842]
[1745570858105,5.62701595,1777.2,1777.0,0.5259842]
[1745570858610,5.62701595,1777.2,1776.9,0.7925]
[1745570859404,5.62667276,1777.3,1776.9,0.7925]
[1745570859603,5.62667276,1777.3,1777.0,0.52617808]
[1745570859929,11.253454,1777.3,1777.1,0.52617808]
[1745570860133,5.62682871,1777.2,1777.1,0.52617808]
[1745570864519,7.23349003,1777.4,1777.1,0.52617808]
[1745570864723,7.23349003,1777.4,1777.2,4.738]
[1745570865048,5.62651212,1777.3,1777.2,4.738]
[1745570865544,5.62651212,1777.3,1777.2,5.26417808]
[1745570868629,7.23325644,1777.5,1777.2,6.60069589]
[1745570868815,5.62628383,1777.4,1777.2,6.60069589]
[1745570869015,7.23325644,1777.5,1777.2,6.60069589]
[1745570869450,12.85945008,1777.5,1777.3,0.52617808]
[1745570869637,5.62619556,1777.4,1777.3,0.52617808]
[1745570870249,5.62619556,1777.4,1777.2,5.5481]
[1745570870419,5.62651212,1777.3,1777.2,6.10291]
[1745570870611,5.62651212,1777.3,1777.2,5.26396173]
[1745570873456,6.38638156,1777.3,1777.2,5.26396173]
[1745570874060,6.38638156,1777.3,1777.2,4.738]
[1745570878577,5.62651212,1777.3,1777.2,4.738]
[1745570880443,7.20798156,1777.3,1777.2,4.738]
[1745570880760,5.62795357,1776.9,1776.6,0.7611]
[1745570880928,5.62809545,1776.8,1776.7,4.737]
[1745570881459,5.62809545,1776.8,1776.7,5.26330267]
[1745570885877,5.62795357,1776.9,1776.7,5.26330267]
[1745570886029,5.62809545,1776.8,1776.7,4.737]
[1745570886978,11.256041,1776.9,1776.7,4.737]
[1745570887271,5.62795357,1776.9,1776.7,6.03649479]
[1745570887564,1.60717963,1777.0,1776.8,0.52609479]
[1745570887766,1.60717963,1777.0,1776.9,0.7734]
[1745570888171,1.60717963,1777.0,1776.9,1.29949479]
[1745570889873,5.62696918,1777.2,1776.9,1.29949479]
[1745570890273,5.62696918,1777.2,1777.0,0.52609479]
[1745570890448,5.62696918,1777.2,1777.1,4.738]
[1745570894337,5.62696918,1777.2,1777.1,5.26400044]
[1745570895443,6.42926918,1777.2,1777.1,5.26400044]
[1745570895773,6.42926918,1777.2,1777.1,4.738]
[1745570897789,5.62696918,1777.2,1777.1,4.738]
[1745570900092,5.62668684,1777.3,1777.1,4.738]
[1745570900258,5.62682871,1777.2,1777.1,4.738]
[1745570900458,5.62682871,1777.2,1777.1,5.26429136]
[1745570902279,6.4169761,1777.4,1777.1,5.26429136]
[1745570902486,7.23355573,1777.4,1777.1,6.09739136]
[1745570902686,1.60717963,1777.4,1777.1,6.6238205]
[1745570902868,7.23338506,1777.4,1777.2,0.52629136]
[1745570903182,1.60717963,1777.4,1777.2,0.52629136]
[1745570903474,5.62590728,1777.5,1777.3,0.52629136]
[1745570904081,5.62590728,1777.5,1777.4,0.52629136]
[1745570904880,5.62590728,1777.5,1777.1,6.09752914]
[1745570905081,5.62590728,1777.5,1777.2,0.60975291]
[1745570905379,5.62590728,1777.5,1777.3,0.52589458]
[1745570905781,5.62590728,1777.5,1777.2,0.60975291]
[1745570906749,5.62590728,1777.5,1777.3,0.5257531]
[1745570907076,5.62619556,1777.4,1777.3,0.5257531]
[1745570907447,5.62590728,1777.5,1777.3,0.5257531]
[1745570907448,11.25205722,1777.5,1777.3,0.5257531]
[1745570907643,5.62590728,1777.5,1777.3,0.5257531]
[1745570907880,5.62590728,1777.5,1777.1,5.5711]
[1745570908049,5.62590728,1777.5,1777.2,0.52566543]
[1745570908755,5.62619556,1777.4,1777.3,0.52566543]
[1745570908951,6.42359556,1777.4,1777.1,4.738]
[1745570909157,5.62682871,1777.2,1777.1,4.738]
[1745570909859,5.62682871,1777.2,1777.1,5.26362666]
[1745570910058,5.62665744,1777.3,1777.1,5.26362666]
[1745570910811,5.62665744,1777.3,1777.1,4.738]
[1745570911774,11.25340308,1777.3,1777.1,4.738]
[1745570911960,5.62682871,1777.2,1777.1,4.738]
[1745570912796,5.62682871,1777.2,1777.1,5.26377665]
[1745570919075,7.15189815,1777.2,1777.1,0.52577665]
[1745570919683,5.62746201,1777.0,1776.9,4.736]
[1745570920000,5.62746201,1777.0,1776.9,5.26240762]
[1745570920206,11.25470498,1777.1,1776.9,5.26240762]
[1745570920382,11.25470498,1777.1,1776.9,4.736]
[1745570920578,5.62746201,1777.0,1776.9,4.736]
[1745570920986,5.62729101,1777.1,1776.9,5.26235234]
[1745570921180,5.62729101,1777.1,1776.9,5.73595234]
[1745570921790,5.62729101,1777.1,1777.0,0.52635234]
[1745570923203,5.62694706,1777.2,1777.0,0.52635234]
[1745570923391,5.62714534,1777.1,1777.0,0.52635234]
[1745570925613,5.62746201,1777.0,1776.9,4.736]
[1745570925830,5.62714534,1777.1,1776.9,5.29054]
[1745570926133,5.62714534,1777.1,1777.0,4.737]
[1745570926522,5.62714534,1777.1,1777.0,5.26335038]
[1745570934844,5.62714534,1777.1,1777.0,0.52635038]
[1745570935146,7.15331478,1777.1,1777.0,0.52635038]
[1745570935347,11.76049441,1777.1,1777.0,0.52635038]
[1745570935536,5.62872903,1776.6,1776.5,16.884]
[1745570935844,5.62872903,1776.6,1776.5,21.621]
[1745570937221,5.62872903,1776.6,1776.5,23.8656]
[1745570937419,11.25727571,1776.7,1776.5,23.8656]
[1745570937733,5.62872903,1776.6,1776.5,23.8656]
[1745570938041,5.62855628,1776.7,1776.5,23.8656]
[1745570940706,12.86381308,1776.8,1776.5,23.8656]
[1745570941015,7.2354271,1776.8,1776.5,23.8656]
[1745570941225,1.60717963,1776.8,1776.7,0.7706]
[1745570941742,7.23527508,1776.8,1776.7,0.7706]
[1745570942040,12.86366292,1776.8,1776.6,2.26037057]
[1745570942207,7.23527508,1776.8,1776.6,2.26037057]
[1745570943347,1.60717963,1776.8,1776.6,2.26037057]
[1745570945454,5.62761912,1777.0,1776.6,2.26037057]
[1745570947767,5.62781691,1776.9,1776.6,2.26037057]
[1745570948771,5.62820359,1776.8,1776.7,4.737]
[1745570950833,5.62781691,1776.9,1776.7,4.737]
[1745570951026,11.2558754,1776.9,1776.7,4.737]
[1745570951551,5.62781691,1776.9,1776.7,4.737]
[1745570951861,5.62809545,1776.8,1776.7,4.737]
[1745570952038,6.39159545,1776.8,1776.7,4.737]
[1745570952672,7.15146489,1776.8,1776.7,4.737]
[1745570952870,5.62872903,1776.6,1776.5,16.884]
[1745570953072,5.62872903,1776.6,1776.5,21.621]
[1745570953231,6.39222903,1776.6,1776.5,21.621]
[1745570957070,6.8216918,1776.6,1776.5,21.621]
[1745570957370,5.62974261,1776.3,1776.0,0.825]
[1745570957569,5.63080649,1776.0,1775.8,0.7909]
[1745570957870,11.26089525,1776.1,1775.9,4.737]
[1745570958047,5.63063063,1776.0,1775.9,4.737]
[1745570959244,6.87140738,1776.1,1775.9,4.737]
[1745570959955,12.501985,1776.1,1775.9,4.737]
[1745570960157,6.87140738,1776.1,1775.9,4.737]
[1745570960779,5.63063063,1776.0,1775.9,4.737]
[1745570962881,6.04550738,1776.1,1775.9,4.737]
[1745570963448,5.63063063,1776.0,1775.9,4.737]
[1745570964374,6.04550738,1776.1,1775.9,4.737]
[1745570964577,11.67612161,1776.1,1775.9,4.737]
[1745570964877,5.63063063,1776.0,1775.9,4.737]
[1745570965450,6.04550738,1776.1,1775.9,4.737]
[1745570966249,5.63063063,1776.0,1775.9,4.737]
[1745570969445,6.82840738,1776.1,1775.9,4.737]
[1745570969674,5.63063063,1776.0,1775.9,4.737]
[1745570970283,11.26150644,1776.0,1775.7,16.887]
[1745570970462,5.63063063,1776.0,1775.9,4.739]
[1745570973589,7.19740007,1776.0,1775.9,4.739]
[1745570973769,11.8045797,1776.0,1775.9,4.739]
[1745570977758,5.63126478,1775.8,1775.7,16.887]
[1745570977960,5.63158191,1775.7,1775.6,4.738]
[1745570982706,5.63126478,1775.8,1775.6,4.738]
[1745570982892,5.63158191,1775.7,1775.6,4.738]
[1745570987088,5.63126478,1775.8,1775.6,4.738]
[1745570988011,5.63158191,1775.7,1775.6,4.738]
[1745570988212,5.63126478,1775.8,1775.6,4.738]
[1745570989114,5.63158191,1775.7,1775.6,4.738]
[1745570990807,5.63126478,1775.8,1775.6,4.738]
[1745570991393,11.26276611,1775.8,1775.6,4.738]
[1745570991600,5.63126478,1775.8,1775.6,4.738]
[1745570992182,5.63158191,1775.7,1775.6,4.738]
[1745570992815,11.26281533,1775.8,1775.6,4.738]
[1745570993113,5.63126478,1775.8,1775.6,4.738]
[1745570993278,11.26280337,1775.8,1775.6,4.738]
[1745570993794,5.63158191,1775.7,1775.6,4.738]
[1745570995115,11.26275804,1775.8,1775.6,4.738]
[1745570995283,11.26280267,1775.8,1775.6,4.738]
[1745570995719,11.2627696,1775.8,1775.6,4.738]
[1745570995921,11.26275783,1775.8,1775.6,4.738]
[1745570996084,5.63158191,1775.7,1775.6,4.738]
[1745571006748,5.63253351,1775.4,1775.3,4.738]
[1745571006909,6.41593351,1775.4,1775.3,4.738]
[1745571007663,5.63253351,1775.4,1775.3,4.738]
[1745571007942,5.63242747,1775.5,1775.3,4.738]
[1745571009662,11.2648942,1775.5,1775.3,4.738]
[1745571009827,5.63242747,1775.5,1775.3,4.738]
[1745571010024,5.63253351,1775.4,1775.3,4.738]
[1745571012551,6.44483351,1775.4,1775.3,4.738]
[1745571012930,5.63380281,1775.0,1774.9,16.897]
[1745571013158,5.63412023,1774.9,1774.8,9.739]
[1745571013472,5.63539025,1774.5,1774.4,4.739]
[1745571013625,5.63539025,1774.5,1774.3,0.5]
[1745571013626,5.63562017,1774.5,1774.3,0.5]
[1745571013971,5.63562017,1774.5,1774.3,1.2616]
[1745571015654,5.63549974,1774.5,1774.3,1.2616]
[1745571016363,12.87773372,1774.6,1774.3,1.2616]
[1745571016662,5.63539141,1774.5,1774.3,1.2616]
[1745571016871,7.67422885,1774.6,1774.3,1.2616]
[1745571017171,13.30960404,1774.6,1774.3,1.2616]
[1745571017461,5.63539698,1774.5,1774.3,1.2616]
[1745571022944,5.63541449,1774.5,1774.3,1.2616]
[1745571023655,7.67420593,1774.6,1774.3,1.2616]
[1745571023856,5.63559603,1774.5,1774.3,1.2616]
[1745571024681,7.67420593,1774.6,1774.3,1.2616]
[1745571025185,13.3095646,1774.6,1774.3,1.2616]
[1745571025375,5.63542783,1774.5,1774.3,1.2616]
[1745571025879,7.67420593,1774.6,1774.3,1.2616]
[1745571026748,2.03900702,1774.6,1774.3,1.2616]
[1745571028058,7.67412834,1774.6,1774.3,1.2616]
[1745571028584,2.03900702,1774.6,1774.3,1.2616]
[1745571029459,7.67420538,1774.6,1774.3,1.2616]
[1745571030561,6.06702575,1774.6,1774.3,1.2616]
[1745571031691,0.22712975,1774.5,1774.3,1.2616]
[1745571033196,6.06702575,1774.6,1774.3,1.2616]
[1745571033393,0.21316522,1774.4,1774.3,1.2616]
[1745571033561,6.06702575,1774.6,1774.3,1.2616]
[1745571033762,0.21316522,1774.4,1774.3,1.2616]
[1745571033995,5.6354961,1774.5,1774.3,1.2616]
[1745571034195,0.21316522,1774.4,1774.3,1.2616]
[1745571034972,12.46837693,1774.6,1774.3,1.2616]
[1745571035172,0.21316522,1774.4,1774.3,1.2616]
[1745571035484,6.83302575,1774.6,1774.3,1.2616]
[1745571035684,0.21316522,1774.4,1774.3,1.2616]
[1745571035886,6.06702575,1774.6,1774.3,1.2616]
[1745571036092,0.21316522,1774.4,1774.3,1.2616]
[1745571036290,6.06702575,1774.6,1774.3,1.2616]
[1745571036614,0.21367199,1774.5,1774.3,1.2616]
[1745571037473,0.21367199,1774.5,1774.4,4.74]
[1745571039816,0.21367199,1774.5,1774.4,6.16226]
[1745571040023,0.15873066,1774.5,1774.4,11.79796784]
[1745571040176,1.60717963,1774.8,1774.5,0.8221]
[1745571042215,5.63397767,1775.0,1774.5,0.8221]
[1745571042520,5.63422794,1774.9,1774.5,0.8221]
[1745571042706,5.63422794,1774.9,1774.5,1.438326]
[1745571043315,11.26801061,1775.0,1774.5,1.438326]
[1745571043511,0.14616645,1774.9,1774.5,7.07369286]
[1745571043712,5.78042226,1774.9,1774.5,1.438326]
[1745571044021,5.63487694,1774.7,1774.4,4.74]
[1745571044313,0.1438789,1774.6,1774.4,4.74]
[1745571044675,5.7791041,1774.6,1774.4,4.74]
[1745571045080,0.1438789,1774.6,1774.4,4.74]
[1745571045723,5.77905755,1774.6,1774.4,4.74]
[1745571047632,0.1438789,1774.6,1774.4,4.74]
[1745571049926,5.7790142,1774.6,1774.4,4.74]
[1745571050721,5.63539025,1774.5,1774.4,4.74]
[1745571050929,5.7787624,1774.5,1774.4,4.74]
[1745571052989,0.14337215,1774.5,1774.4,4.74]
[1745571053406,0.14337215,1774.5,1774.4,5.5039]
[1745571053932,5.63510456,1774.6,1774.4,5.5039]
[1745571054130,0.14337215,1774.5,1774.4,5.5039]
[1745571054652,0.14337215,1774.5,1774.4,12.49986728]
[1745571054927,5.63432549,1774.9,1774.4,15.49986728]
[1745571055118,0.13266225,1774.8,1774.4,15.49986728]
[1745571055320,5.63432549,1774.9,1774.4,15.49986728]
[1745571055527,0.13266225,1774.8,1774.4,15.49986728]
[1745571055730,5.63432549,1774.9,1774.5,1.54998673]
[1745571055905,0.13275821,1774.8,1774.5,1.54998673]
[1745571056246,5.63432549,1774.9,1774.5,1.54998673]
[1745571056403,0.13253949,1774.7,1774.5,1.54998673]
[1745571056607,5.63432549,1774.9,1774.5,1.54998673]
[1745571057001,0.13304611,1774.8,1774.5,1.54998673]
[1745571057203,0.13304611,1774.8,1774.6,0.7706]
[1745571057405,6.05393152,1775.0,1774.6,0.7706]
[1745571057605,0.13253949,1774.7,1774.6,0.7706]
[1745571058150,11.68797433,1775.0,1774.6,0.7706]
[1745571058352,0.13253949,1774.7,1774.6,0.7706]
[1745571058561,6.05393152,1775.0,1774.6,0.7706]
[1745571058720,0.12158396,1774.7,1774.6,0.7706]
[1745571058920,6.05393152,1775.0,1774.6,0.7706]
[1745571059153,5.75662206,1774.9,1774.6,0.7706]
[1745571060039,0.12250117,1774.9,1774.6,0.7706]
[1745571063638,6.42961901,1775.1,1774.6,0.7706]
[1745571063838,0.12302974,1774.8,1774.6,1.56619293]
[1745571064038,5.63383635,1775.0,1774.6,1.56619293]
[1745571064440,0.12353629,1774.9,1774.6,1.56619293]
[1745571064705,5.63361901,1775.1,1774.6,1.56619293]
[1745571064969,6.06160606,1775.1,1774.6,1.56619293]
[1745571065170,0.12404278,1775.0,1774.6,1.56619293]
[1745571065378,5.75785,1775.0,1774.6,1.56619293]
[1745571065558,5.75785,1775.0,1774.6,0.7706]
[1745571066836,0.12404278,1775.0,1774.6,0.7706]
[1745571067041,5.63434744,1774.9,1774.5,2.33908673]
[1745571067242,5.63445798,1774.8,1774.5,0.7891]
[1745571067443,0.12436483,1774.8,1774.5,0.7891]
[1745571067644,5.63434744,1774.9,1774.5,0.7891]
[1745571068174,0.12436483,1774.8,1774.5,0.7891]
[1745571068374,5.63434744,1774.9,1774.5,0.7891]
[1745571068581,0.12385822,1774.7,1774.5,0.7891]
[1745571068783,5.63434744,1774.9,1774.5,1.402049]
[1745571068970,0.12335156,1774.6,1774.5,1.402049]
[1745571069156,5.63434744,1774.9,1774.5,1.402049]
[1745571069356,0.12335156,1774.6,1774.5,1.402049]
[1745571069582,5.63434744,1774.9,1774.5,1.402049]
[1745571069782,0.12335156,1774.6,1774.5,0.7891]
[1745571069969,5.63434744,1774.9,1774.5,0.7891]
[1745571070283,0.12335156,1774.6,1774.5,0.7891]
[1745571070484,5.63434744,1774.9,1774.5,0.7891]
[1745571070651,0.12335156,1774.6,1774.5,0.7891]
[1745571070946,11.26809387,1775.0,1774.5,2.04160225]
[1745571071151,0.12487138,1774.9,1774.5,2.04160225]
[1745571071353,0.12487138,1774.9,1774.7,5.63473084]
[1745571071553,12.87392095,1775.2,1774.8,5.5018]
[1745571071753,0.12595456,1775.1,1774.8,5.5018]
[1745571071983,5.63348849,1775.1,1774.8,5.5018]
[1745571072206,0.12544813,1775.0,1774.8,5.5018]
[1745571072586,6.44912023,1774.9,1774.8,4.738]
[1745571072793,6.57406186,1774.9,1774.8,4.738]
[1745571074887,5.75906186,1774.9,1774.8,4.738]
[1745571081606,6.59186186,1774.9,1774.8,4.738]
[1745571081979,7.3517313,1774.9,1774.8,4.738]
[1745571082686,5.63596617,1774.4,1774.2,17.6776]
[1745571082886,5.63596617,1774.4,1774.3,4.738]
[1745571086687,6.06323484,1774.4,1774.3,4.738]
[1745571088410,6.1833361,1774.4,1774.3,4.738]
[1745571089198,7.79051573,1774.4,1774.3,4.738]
[1745571093722,7.36324706,1774.4,1774.2,5.5663]
[1745571093883,5.63602547,1774.3,1774.2,5.5663]
[1745571094284,5.75441725,1774.3,1774.2,5.5663]
[1745571094690,0.11839178,1774.3,1774.2,5.5663]
[1745571094885,0.11839178,1774.3,1774.2,6.12293]
[1745571095521,5.63587921,1774.4,1774.2,6.12293]
[1745571095701,0.10844751,1774.3,1774.2,5.5663]
[1745571096102,0.10844751,1774.3,1774.2,4.738]
[1745571096303,5.74447298,1774.3,1774.2,4.738]
[1745571096589,0.10844751,1774.3,1774.2,4.738]
[1745571104653,5.63571944,1774.4,1774.2,4.738]
[1745571105450,6.3482953,1774.5,1774.2,4.738]
[1745571105644,11.98393767,1774.5,1774.2,4.738]
[1745571105826,6.3482953,1774.5,1774.2,4.738]
[1745571106015,11.98394284,1774.5,1774.2,5.2118]
[1745571106217,6.3482953,1774.5,1774.2,5.2118]
[1745571106430,5.63586029,1774.4,1774.2,4.738]
[1745571107656,6.3482953,1774.5,1774.2,4.738]
[1745571107853,5.63583606,1774.4,1774.2,4.738]
[1745571111551,11.98391432,1774.5,1774.2,4.738]
[1745571111759,6.3482953,1774.5,1774.2,4.738]
[1745571111924,5.63571879,1774.4,1774.2,4.738]
[1745571112225,5.63571879,1774.4,1774.2,5.2118]
[1745571112425,11.98393599,1774.5,1774.2,5.2118]
[1745571112646,6.3482953,1774.5,1774.2,5.2118]
[1745571115060,11.98398263,1774.5,1774.2,5.2118]
[1745571115226,5.63574957,1774.4,1774.2,5.2118]
[1745571115426,6.3482953,1774.5,1774.2,5.2118]
[1745571116783,11.9839437,1774.5,1774.2,5.2118]
[1745571116928,6.3482953,1774.5,1774.2,5.2118]
[1745571117292,5.63574025,1774.4,1774.2,5.2118]
[1745571117460,6.3482953,1774.5,1774.2,5.2118]
[1745571117957,0.29399763,1774.5,1774.3,1.27918]
[1745571118143,7.24241836,1774.6,1774.3,1.27918]
[1745571118350,7.24242927,1774.6,1774.3,1.27918]
[1745571118555,5.63524964,1774.6,1774.3,1.27918]
[1745571120471,6.45633074,1775.1,1774.5,6.39523516]
[1745571120670,5.63380948,1775.0,1774.6,6.13522352]
[1745571120835,12.09011123,1775.1,1774.6,6.13522352]
[1745571121966,5.63386265,1775.0,1774.6,6.13522352]
[1745571123563,5.63426452,1774.9,1774.6,6.13522352]
[1745571126174,5.63426452,1774.9,1774.7,0.52634816]
[1745571126360,5.63426452,1774.9,1774.7,1.19250533]
[1745571126830,5.63426452,1774.9,1774.8,0.52634816]
[1745571127867,7.16673396,1774.9,1774.8,0.52634816]
[1745571128366,5.63482822,1774.7,1774.5,4.736]
[1745571128564,5.63447663,1774.8,1774.5,4.736]
[1745571128773,5.63476613,1774.7,1774.5,5.28821]
[1745571129063,5.63476613,1774.7,1774.6,0.5262197]
[1745571133560,5.63476613,1774.7,1774.5,4.736]
[1745571133779,5.63507269,1774.6,1774.5,4.736]
[1745571134450,5.63507269,1774.6,1774.5,5.26238577]
[1745571137150,11.26977573,1774.7,1774.5,5.26238577]
[1745571137487,5.63476613,1774.7,1774.6,0.52638577]
[1745571137857,5.92854398,1774.8,1774.6,0.52638577]
[1745571138061,11.56322618,1774.8,1774.6,0.52638577]
[1745571138386,5.92854398,1774.8,1774.7,0.52638577]
[1745571141578,0.29395905,1774.8,1774.7,1.30108577]
[1745571141974,5.63443768,1774.8,1774.7,1.30108577]
[1745571142168,5.63415674,1774.9,1774.7,1.30108577]
[1745571142653,5.63415674,1774.9,1774.8,0.52638577]
[1745571144072,5.63398,1775.0,1774.8,0.52638577]
[1745571144383,11.26808459,1775.0,1774.8,0.52638577]
[1745571144590,5.63412023,1774.9,1774.7,0.7747]
[1745571144758,5.63398,1775.0,1774.7,0.7747]
[1745571145088,5.63412919,1774.9,1774.7,0.7747]
[1745571145285,5.63412919,1774.9,1774.8,0.5267181]
[1745571145487,5.63398,1775.0,1774.8,0.5267181]
[1745571145789,5.63398,1775.0,1774.9,0.5267181]
[1745571146163,0.29393476,1775.1,1774.9,6.0523181]
[1745571146375,0.29393476,1775.1,1775.0,0.60523181]
[1745571146580,0.29393476,1775.1,1775.0,1.13194991]
[1745571146969,5.92742019,1775.1,1775.0,1.13194991]
[1745571148292,6.74572019,1775.1,1775.0,0.5267181]
[1745571149798,5.63380281,1775.0,1774.9,4.736]
[1745571149964,5.63380281,1775.0,1774.9,5.26282213]
[1745571150781,9.44830281,1775.0,1774.9,0.52682213]
[1745571151188,5.63475516,1774.7,1774.6,4.736]
[1745571151790,5.92872581,1774.7,1774.6,4.736]
[1745571152765,5.63475516,1774.7,1774.6,5.26283346]
[1745571158288,5.63458236,1774.8,1774.6,5.26283346]
[1745571158491,3.0,1775.0,1774.8,0.752]
[1745571158492,5.63397148,1775.0,1774.8,0.752]
[1745571158685,11.26738662,1775.1,1774.8,0.752]
[1745571158893,5.63381178,1775.0,1774.8,0.752]
[1745571159095,5.63381178,1775.0,1774.9,0.52683346]
[1745571159412,5.63363444,1775.1,1774.9,0.52683346]
[1745571159614,5.63363444,1775.1,1774.8,0.752]
[1745571160023,5.63380281,1775.0,1774.8,0.752]
[1745571160502,5.63380281,1775.0,1774.9,0.5266102]
[1745571161317,5.63363444,1775.1,1774.9,0.5266102]
[1745571161617,11.26742428,1775.1,1774.9,0.5266102]
[1745571161780,5.63380281,1775.0,1774.9,0.5266102]
[1745571167128,11.26735684,1775.1,1774.9,0.5266102]
[1745571167730,5.63363444,1775.1,1775.0,0.5266102]
[1745571170627,5.63363444,1775.1,1775.0,5.2606102]
[1745571171830,5.63331236,1775.2,1775.0,5.2606102]
[1745571171831,6.05643799,1775.3,1775.0,5.78667122]
[1745571172132,6.05643799,1775.3,1775.1,1.3437102]
[1745571172286,5.63316809,1775.2,1775.1,1.3437102]
[1745571173334,5.63316809,1775.2,1775.1,0.5266102]
[1745571174824,6.42196809,1775.2,1775.1,0.5266102]
[1745571175632,5.63316809,1775.2,1775.1,0.5266102]
[1745571176640,0.29387656,1775.3,1775.1,1.87797122]
[1745571177010,0.29387656,1775.3,1775.2,0.5266102]
[1745571180443,0.29387656,1775.3,1775.2,2.10357964]
[1745571180628,0.29387656,1775.3,1775.2,1.3437102]
[1745571180828,0.29387656,1775.3,1775.2,2.09401735]
[1745571181030,5.63193209,1775.6,1775.2,2.09401735]
[1745571181251,5.63193209,1775.6,1775.3,0.5266102]
[1745571181449,5.63193209,1775.6,1775.4,4.734]
[1745571181653,5.63193209,1775.6,1775.4,5.2606102]
[1745571181984,5.63193209,1775.6,1775.4,5.78667122]
[1745571182275,5.63193209,1775.6,1775.5,0.5266102]
[1745571182567,12.02198972,1775.7,1775.5,0.5266102]
[1745571182772,5.63189907,1775.6,1775.4,5.26006102]
[1745571182973,6.39018599,1775.7,1775.5,0.5260061]
[1745571183136,5.63189907,1775.6,1775.5,0.5260061]